fUST/lending_fUST_20250802
["ID","MTS","AMOUNT","RATE_DAILY","PERIOD"]
[376857271,1754143857694,-460.0,0.00026849,10]
[376857272,1754143857703,-471.63769561,0.00026849,10]
[376857273,1754143857713,-460.0,0.00026849,10]
[376857274,1754143857722,-460.0,0.00026849,10]
[376857275,1754143857731,-460.0,0.00026849,10]
[376857276,1754143857740,-295.00042151,0.00026849,10]
[376857277,1754143857749,-460.0,0.00026849,10]
[376857278,1754143857759,-460.0,0.00026849,10]
[376857279,1754143857768,-460.0,0.00026849,10]
[376857280,1754143857778,-460.0,0.00026849,10]
[376857281,1754143857787,-460.0,0.00026849,10]
[376857282,1754143857797,-460.0,0.00026849,10]
[376857283,1754143857806,-529.92,0.00026849,10]
[376857284,1754143857816,-460.0,0.00026849,10]
[376857285,1754143857826,-460.0,0.00026849,10]
[376857286,1754143857835,-460.0,0.00026849,10]
[376857287,1754143857844,-460.0,0.00026849,10]
[376857288,1754143857854,-460.0,0.00026849,10]
[376857289,1754143857867,-461.34808089,0.00026849,10]
[376857290,1754143857876,-460.0,0.00026849,10]
[376857291,1754143857885,-460.0,0.00026849,10]
[376857292,1754143857894,-460.0,0.00026849,10]
[376857293,1754143857903,-460.0,0.00026849,10]
[376857294,1754143857912,-460.0,0.00026849,10]
[376857295,1754143857921,-460.0,0.00026849,10]
[376857296,1754143857929,-460.0,0.00026849,10]
[376857297,1754143857941,-460.0,0.00026849,10]
[376857298,1754143857950,-460.0,0.00026849,10]
[376857299,1754143857958,-460.0,0.00026849,10]
[376857300,1754143857968,-460.0,0.00026849,10]
[376857301,1754143857977,-460.0,0.00026849,10]
[376857302,1754143857987,-240.70004076,0.00026849,10]
[376857303,1754143857996,-460.0,0.00026849,10]
[376857304,1754143858005,-460.0,0.00026849,10]
[376857305,1754143858015,-460.0,0.00026849,10]
[376857306,1754143858025,-460.0,0.00026849,10]
[376857307,1754143858034,-460.0,0.00026849,10]
[376857308,1754143858045,-460.0,0.00026849,10]
[376857309,1754143858055,-460.0,0.00026849,10]
[376857310,1754143858065,-460.0,0.00026849,10]
[376857311,1754143858074,-460.0,0.00026849,10]
[376857312,1754143858083,-460.0,0.00026849,10]
[376857313,1754143858092,-460.0,0.00026849,10]
[376857314,1754143858102,-460.0,0.00026849,10]
[376857315,1754143858112,-460.0,0.00026849,10]
[376857316,1754143858122,-460.0,0.00026849,10]
[376857317,1754143858131,-463.471681,0.00026849,10]
[376857318,1754143858235,-460.0,0.00026849,10]
[376857319,1754143858259,-460.0,0.00026849,10]
[376857320,1754143858268,-463.478813,0.00026849,10]
[376857321,1754143858278,-460.0,0.00026849,10]
[376857322,1754143858287,-460.0,0.00026849,10]
[376857323,1754143858298,-460.0,0.00026849,10]
[376857324,1754143858308,-460.0,0.00026849,10]
[376857325,1754143858318,-460.0,0.00026849,10]
[376857326,1754143858327,-460.0,0.00026849,10]
[376857327,1754143858337,-460.0,0.00026849,10]
[376857328,1754143858346,-460.0,0.00026849,10]
[376857329,1754143858355,-460.0,0.00026849,10]
[376857330,1754143858365,-463.61944003,0.00026849,10]
[376857331,1754143858374,-460.0,0.00026849,10]
[376857332,1754143858383,-460.0,0.00026849,10]
[376857333,1754143858393,-460.0,0.00026849,10]
[376857334,1754143858402,-460.0,0.00026849,10]
[376857335,1754143858412,-540.42,0.00026849,10]
[376857336,1754143858421,-460.0,0.00026849,10]
[376857337,1754143858430,-468.24332423,0.00026849,10]
[376857338,1754143858440,-460.0,0.00026849,10]
[376857339,1754143858449,-460.0,0.00026849,10]
[376857340,1754143858459,-460.0,0.00026849,10]
[376857341,1754143858468,-460.0,0.00026849,10]
[376857342,1754143858477,-385.06,0.00026849,10]
[376857343,1754143858487,-460.0,0.00026849,10]
[376857344,1754143858496,-460.0,0.00026849,10]
[376857345,1754143858505,-151.0,0.00026849,7]
[376857346,1754143858514,-460.0,0.00026849,10]
[376857347,1754143858523,-460.0,0.00026849,10]
[376857348,1754143858534,-460.0,0.00026849,10]
[376857349,1754143858543,-460.0,0.00026849,10]
[376857350,1754143858552,-460.0,0.00026849,10]
[376857351,1754143858562,-460.0,0.00026849,10]
[376857352,1754143858571,-527.02465094,0.00026849,10]
[376857353,1754143858580,-460.0,0.00026849,10]
[376857354,1754143858590,-460.0,0.00026849,10]
[376857355,1754143858600,-460.0,0.00026849,10]
[376857356,1754143858609,-460.0,0.00026849,10]
[376857357,1754143858619,-460.0,0.00026849,10]
[376857358,1754143858629,-460.0,0.00026849,10]
[376857359,1754143858639,-460.0,0.00026849,10]
[376857360,1754143858648,-287.38,0.00026849,10]
[376857361,1754143858658,-460.0,0.00026849,10]
[376857362,1754143858668,-460.0,0.00026849,10]
[376857363,1754143858677,-460.0,0.00026849,10]
[376857364,1754143858687,-460.0,0.00026849,10]
[376857365,1754143858696,-460.0,0.00026849,10]
[376857366,1754143858706,-460.0,0.00026849,10]
[376857367,1754143858715,-460.0,0.00026849,10]
[376857368,1754143858725,-460.0,0.00026849,10]
[376857369,1754143858734,-460.0,0.00026849,10]
[376857370,1754143858744,-460.0,0.00026849,10]
[376857371,1754143858753,-460.0,0.00026849,10]
[376857372,1754143858763,-460.0,0.00026849,10]
[376857373,1754143858773,-460.0,0.00026849,10]
[376857374,1754143858783,-460.0,0.00026849,10]
[376857375,1754143858794,-460.0,0.00026849,10]
[376857376,1754143858804,-460.0,0.00026849,10]
[376857377,1754143858813,-460.0,0.00026849,10]
[376857378,1754143858822,-460.0,0.00026849,10]
[376857379,1754143858832,-4937.59,0.00026849,10]
[376857380,1754143858842,-460.0,0.00026849,10]
[376857381,1754143858851,-460.0,0.00026849,10]
[376857382,1754143858864,-460.0,0.00026849,10]
[376857383,1754143858873,-460.0,0.00026849,10]
[376857384,1754143858883,-460.0,0.00026849,10]
[376857385,1754143858893,-460.0,0.00026849,10]
[376857386,1754143858903,-460.0,0.00026849,10]
[376857387,1754143858912,-4937.59,0.00026849,10]
[376857388,1754143858922,-460.0,0.00026849,10]
[376857389,1754143858931,-460.0,0.00026849,10]
[376857390,1754143858942,-460.0,0.00026849,10]
[376857391,1754143858952,-460.0,0.00026849,10]
[376857392,1754143858962,-4937.59,0.00026849,10]
[376857393,1754143858971,-460.0,0.00026849,10]
[376857394,1754143858981,-460.0,0.00026849,10]
[376857395,1754143858991,-4937.59,0.00026849,10]
[376857397,1754143859000,-4937.59,0.00026849,10]
[376857398,1754143859010,-460.0,0.00026849,10]
[376857399,1754143859020,-4937.59,0.00026849,10]
[376857400,1754143859028,-4937.59,0.00026849,10]
[376857401,1754143859038,-460.0,0.00026849,10]
[376857402,1754143859048,-4937.59,0.00026849,10]
[376857403,1754143859057,-460.0,0.00026849,10]
[376857404,1754143859067,-460.0,0.00026849,10]
[376857405,1754143859077,-460.0,0.00026849,10]
[376857406,1754143859086,-4937.59,0.00026849,10]
[376857407,1754143859095,-460.0,0.00026849,10]
[376857408,1754143859105,-460.0,0.00026849,10]
[376857409,1754143859114,-460.0,0.00026849,10]
[376857410,1754143859123,-460.0,0.00026849,10]
[376857411,1754143859133,-460.0,0.00026849,10]
[376857412,1754143859142,-467.46,0.00026849,10]
[376857413,1754143859151,-460.0,0.00026849,10]
[376857414,1754143859160,-466.72267648,0.00026849,10]
[376857415,1754143859170,-4937.59,0.00026849,10]
[376857416,1754143859179,-460.0,0.00026849,10]
[376857417,1754143859189,-460.0,0.00026849,10]
[376857418,1754143859198,-460.0,0.00026849,10]
[376857419,1754143859207,-460.0,0.00026849,10]
[376857420,1754143859216,-4937.59,0.00026849,10]
[376857421,1754143859225,-461.69909756,0.00026849,10]
[376857422,1754143859234,-460.0,0.00026849,10]
[376857423,1754143859243,-460.0,0.00026849,10]
[376857424,1754143859252,-188.47278744,0.00026849,10]
[376857425,1754143859261,-460.0,0.00026849,10]
[376857426,1754143859271,-461.52634427,0.00026849,10]
[376857427,1754143859280,-4937.59,0.00026849,10]
[376857428,1754143859289,-460.0,0.00026849,10]
[376857429,1754143859300,-507.33557703,0.00026849,10]
[376857430,1754143859309,-460.0,0.00026849,10]
[376857431,1754143859318,-462.40130693,0.00026849,10]
[376857432,1754143859327,-460.0,0.00026849,10]
[376857433,1754143859336,-4937.59,0.00026849,10]
[376857434,1754143859346,-460.0,0.00026849,10]
[376857435,1754143859355,-4937.59,0.00026849,10]
[376857436,1754143859364,-4937.59,0.00026849,10]
[376857437,1754143859374,-460.0,0.00026849,10]
[376857438,1754143859384,-4937.59,0.00026849,10]
[376857439,1754143859393,-460.0,0.00026849,10]
[376857440,1754143859402,-460.0,0.00026849,10]
[376857441,1754143859411,-4937.59,0.00026849,10]
[376857442,1754143859421,-463.09850051,0.00026849,5]
[376857443,1754143859430,-460.0,0.00026849,10]
[376857444,1754143859439,-460.0,0.00026849,10]
[376857445,1754143859448,-460.0,0.00026849,10]
[376857446,1754143859457,-2600.99069299,0.00026849,10]
[376857447,1754143859739,-770.37750259,0.00026849,10]
[376857448,1754143859833,-151.0,0.000263,15]
[376857449,1754143859842,-151.0,0.000266,20]
[376857450,1754143859852,-1566.22180442,0.00026849,10]
[376857451,1754143859864,-460.0,0.00026849,10]
[376857452,1754143859874,-460.0,0.00026849,10]
[376857453,1754143859883,-4937.59,0.00026849,10]
[376857454,1754143859892,-4937.59,0.00026849,10]
[376857455,1754143859902,-460.0,0.00026849,10]
[376857456,1754143859912,-573.10468715,0.00026849,10]
[376857457,1754143859921,-460.0,0.00026849,10]
[376857458,1754143859930,-4167.28,0.00026849,10]
[376857459,1754143859941,-4937.59,0.00026849,10]
[376857460,1754143859951,-460.0,0.00026849,10]
[376857461,1754143859961,-460.0,0.00026849,10]
[376857462,1754143859970,-4167.28,0.00026849,10]
[376857463,1754143859980,-4937.59,0.00026849,10]
[376857464,1754143859989,-460.0,0.00026849,10]
[376857465,1754143859998,-460.0,0.00026849,10]
[376857466,1754143860008,-4937.59,0.00026849,10]
[376857467,1754143860018,-4167.28,0.00026849,10]
[376857468,1754143860028,-460.0,0.00026849,10]
[376857469,1754143860039,-460.0,0.00026849,10]
[376857470,1754143860051,-460.0,0.00026849,10]
[376857471,1754143860061,-460.0,0.00026849,10]
[376857472,1754143860072,-460.0,0.00026849,10]
[376857473,1754143860082,-460.0,0.00026849,10]
[376857474,1754143860092,-460.0,0.00026849,10]
[376857475,1754143860103,-460.0,0.00026849,10]
[376857476,1754143860113,-460.0,0.00026849,10]
[376857477,1754143860123,-4167.28,0.00026849,10]
[376857478,1754143860133,-460.0,0.00026849,10]
[376857479,1754143860145,-460.0,0.00026849,10]
[376857480,1754143860154,-4937.63477966,0.00026849,10]
[376857481,1754143860163,-4167.28,0.00026849,10]
[376857482,1754143860173,-4167.28,0.00026849,10]
[376857483,1754143860183,-460.0,0.00026849,10]
[376857484,1754143860192,-4167.28,0.00026849,10]
[376857485,1754143860201,-460.0,0.00026849,10]
[376857486,1754143860211,-460.0,0.00026849,10]
[376857487,1754143860221,-4167.28,0.00026849,10]
[376857488,1754143860230,-505.49,0.00026849,10]
[376857489,1754143860239,-4167.28,0.00026849,10]
[376857490,1754143860249,-505.49,0.00026849,10]
[376857491,1754143860259,-460.0,0.00026849,10]
[376857492,1754143860269,-505.49,0.00026849,10]
[376857493,1754143860279,-505.49,0.00026849,10]
[376857494,1754143860289,-460.0,0.00026849,10]
[376857495,1754143860299,-4167.28,0.00026849,10]
[376857496,1754143860308,-460.0,0.00026849,7]
[376857497,1754143860318,-505.49,0.00026849,10]
[376857498,1754143860327,-132.83802877,0.00026849,10]
[376857499,1754143864442,168.715739,0.00013699,2]
[376857500,1754143864661,168.715739,0.00020187,2]
[376857501,1754144102505,666.0,0.00022889,2]
[376857503,1754144204438,406.389989,0.00022882,2]
[376857504,1754144206409,197.931319,0.00022882,2]
[376857506,1754144350515,233.0,0.0002306,2]
[376857507,1754144361489,5000.0,0.0002306,2]
[376857508,1754144370071,5000.0,0.0002306,2]
[376857509,1754144378353,4835.21921413,0.0002306,2]
[376857510,1754144378376,124.20188571,0.0002306,2]
[376857511,1754144380636,151.24291427,0.00023014,2]
[376857512,1754144386789,5000.0,0.0002306,2]
[376857513,1754144403229,10255.0,0.000189,2]
[376857514,1754144403442,4469.55520002,0.0002306,2]
[376857515,1754144403467,530.44479998,0.0002306,2]
[376857516,1754144419540,1096.84496388,0.0002306,2]
[376857517,1754144492084,188.54203448,0.0002306,2]
[376857518,1754144516538,168.184162,0.00027397,120]
[376857522,1754144649105,172.79345103,0.0002306,2]
[376857523,1754144696996,18011.37475063,0.00022685,2]
[376857524,1754144697019,6888.62524937,0.00022685,2]
[376857525,1754144712198,213.93443002,0.0002306,2]
[376857527,1754144738119,-353.59634906,0.000231,2]
[376857528,1754144738145,-1799.63713066,0.000231,2]
[376857529,1754144738166,-158.41606367,0.000232,2]
[376857530,1754144809096,-172.06079826,0.000232,2]
[376857531,1754144847103,-129.52313807,0.000232,2]
[376857532,1754144847124,-179.65122183,0.0002329,2]
[376857533,1754144847146,-53.35475499,0.0002339,2]
[376857534,1754144849084,360.0,0.0002306,2]
[376857535,1754144857764,2343.03654844,0.000229,7]
[376857536,1754144913418,4202.34659381,0.00021739,2]
[376857542,1754144942971,959.55340698,0.0002096,2]
[376857543,1754144960225,374.5,0.00027584,120]
[376857605,1754145036552,-206.1210399,0.00023291,2]
[376857607,1754145036562,-500.0,0.00023352,2]
[376857609,1754145036572,-1200.0,0.00023391,2]
[376857612,1754145036584,-300.0,0.00023391,2]
[376857613,1754145036594,-300.0,0.00023391,2]
[376857615,1754145036603,-575.15240614,0.00023391,2]
[376857619,1754145036641,-321.06130044,0.00023391,2]
[376857621,1754145036653,-303.78629342,0.00023391,2]
[376857623,1754145036662,-8495.3833811,0.00023392,2]
[376857624,1754145036671,-206.1210399,0.00023482,2]
[376857626,1754145036680,-206.1210399,0.00023673,2]
[376857627,1754145036690,-179.65122183,0.00023773,2]
[376857629,1754145036699,-656.56665899,0.000238,2]
[376857631,1754145036708,-200.0,0.00023858,15]
[376857633,1754145036717,-200.0,0.00023858,15]
[376857635,1754145036726,-200.0,0.00023858,15]
[376857637,1754145036736,-200.0,0.00023858,15]
[376857639,1754145036745,-200.0,0.00023858,15]
[376857642,1754145036754,-6294.14275272,0.00023858,2]
[376857644,1754145036765,-1130.93883905,0.00023858,2]
[376857756,1754145037840,-10951.96238003,0.00023858,2]
[376857766,1754145037926,-1528.42106134,0.00023858,2]
[376857769,1754145037938,-846.22761373,0.00023858,2]
[376857771,1754145037950,-473.9772975,0.00023858,2]
[376857772,1754145038077,-4004.54524907,0.00023858,2]
[376857773,1754145038086,-164.89369169,0.00023873,2]
[376857774,1754145038095,-542.75538867,0.00023873,2]
[376857775,1754145038104,-507.42146889,0.00023873,2]
[376857776,1754145038114,-340.18055062,0.00023873,2]
[376857777,1754145038122,-323.40389411,0.00023873,2]
[376857778,1754145038131,-550.21,0.00023879,3]
[376857779,1754145038140,-4307.08,0.00023888,2]
[376857780,1754145038149,-500.0,0.00023888,2]
[376857781,1754145038158,-500.0,0.00023888,2]
[376857782,1754145038167,-500.0,0.00023888,2]
[376857783,1754145038176,-500.0,0.00023888,2]
[376857784,1754145038185,-500.0,0.00023888,2]
[376857785,1754145038194,-575.24122957,0.00023888,2]
[376857787,1754145038203,-500.0,0.00023888,2]
[376857790,1754145038212,-260.86351034,0.00023888,2]
[376857793,1754145038222,-500.0,0.00023888,2]
[376857795,1754145038231,-500.0,0.00023888,2]
[376857799,1754145038241,-500.0,0.00023888,2]
[376857802,1754145038250,-500.0,0.00023888,2]
[376857804,1754145038259,-500.0,0.00023888,2]
[376857807,1754145038268,-500.0,0.00023888,2]
[376857810,1754145038277,-471.97465782,0.00023888,2]
[376857813,1754145038286,-500.0,0.00023888,2]
[376857816,1754145038295,-500.0,0.00023888,2]
[376857819,1754145038304,-500.0,0.00023888,2]
[376857821,1754145038313,-500.0,0.00023888,2]
[376857823,1754145038323,-500.0,0.00023888,2]
[376857825,1754145038334,-500.0,0.00023888,2]
[376857827,1754145038343,-500.0,0.00023888,2]
[376857829,1754145038352,-433.66470885,0.00023888,2]
[376857831,1754145038361,-397.097307,0.00023888,2]
[376857833,1754145038370,-513.70205729,0.00023888,2]
[376857835,1754145038380,-156.3750634,0.00023888,2]
[376857838,1754145038392,-500.0,0.00023888,2]
[376857840,1754145038401,-500.0,0.00023888,2]
[376857841,1754145038411,-500.0,0.00023888,2]
[376857843,1754145038420,-13826.91307024,0.00023889,2]
[376857846,1754145038432,-10090.72961334,0.00023889,2]
[376857848,1754145038443,-2123.83212,0.00023889,2]
[376858016,1754145040015,-675.29864606,0.00023773,2]
[376858018,1754145040024,-745.88181664,0.00023889,2]
[376858020,1754145040036,-58697.9573639,0.00023889,2]
[376858022,1754145040048,-38646.596739,0.00023889,2]
[376858024,1754145040060,-1045.36510411,0.00023889,2]
[376858026,1754145040072,-14891.09803384,0.00023889,2]
[376858029,1754145040084,-2008.19839004,0.00023889,2]
[376858282,1754145042845,-187806.67949396,0.00023889,2]
[376858285,1754145042862,-637.56813429,0.00023889,2]
[376858287,1754145042877,-777.17506577,0.00023889,2]
[376858299,1754145042982,-462.75695184,0.00023889,2]
[376858301,1754145042994,-431.15,0.00023889,2]
[376858303,1754145043007,-8385.44604208,0.00023889,2]
[376858628,1754145046275,-4130.33236578,0.00023889,2]
[376858630,1754145046285,-4373.78,0.000239,7]
[376858632,1754145046295,-328.31,0.000239,7]
[376858634,1754145046303,-1442.35474057,0.000239,7]
[376858636,1754145046315,-72.88525943,0.000239,7]
[376858638,1754145046325,-150.0,0.0002427,2]
[376858641,1754145046336,-1000.0,0.0002427,2]
[376858643,1754145046346,-1000.0,0.0002427,2]
[376858645,1754145046356,-1000.0,0.0002427,2]
[376858646,1754145046365,-1000.0,0.0002427,2]
[376858648,1754145046375,-1000.0,0.0002427,2]
[376858650,1754145046384,-1000.0,0.0002427,2]
[376858652,1754145046393,-1000.0,0.0002427,2]
[376858654,1754145046403,-1000.0,0.0002427,2]
[376858657,1754145046413,-1000.0,0.0002427,2]
[376858659,1754145046423,-1000.0,0.0002427,2]
[376858661,1754145046432,-1000.0,0.0002427,2]
[376858663,1754145046442,-1000.0,0.0002427,2]
[376858665,1754145046451,-1000.0,0.0002427,2]
[376858666,1754145046463,-1000.0,0.0002427,2]
[376858668,1754145046472,-1000.0,0.0002427,2]
[376858671,1754145046483,-1000.0,0.0002427,2]
[376858672,1754145046492,-494.57425615,0.0002427,2]
[376858675,1754145046504,-505.42574385,0.0002427,2]
[376858677,1754145046514,-318.98132035,0.0002427,2]
[376858679,1754145046524,-675.29864603,0.00024304,2]
[376858681,1754145046533,-601.91277633,0.0002437,2]
[376858683,1754145046543,-590.53743215,0.0002437,2]
[376858685,1754145046552,-2407.65110533,0.0002437,2]
[376858687,1754145046561,-514.33051358,0.00024519,2]
[376858689,1754145046571,-656.56665899,0.00024537,2]
[376858691,1754145046580,-160.0,0.00024676,2]
[376858693,1754145046591,-216.27517063,0.00024704,2]
[376858695,1754145046600,-160.0,0.00024704,2]
[376858697,1754145046609,-841.70373825,0.00024704,2]
[376858699,1754145046619,-160.0,0.00024704,2]
[376858701,1754145046629,-160.0,0.00024704,2]
[376858703,1754145046638,-160.0,0.00024704,2]
[376858705,1754145046648,-231.57249719,0.00024704,2]
[376858707,1754145046658,-160.0,0.00024704,2]
[376858709,1754145046668,-215.0795835,0.00024704,2]
[376858711,1754145046677,-265.29573587,0.0002474,2]
[376858713,1754145046686,-154.780689,0.00024827,2]
[376858715,1754145046696,-309.55276897,0.00024864,2]
[376858718,1754145046716,-2050.23480992,0.00024864,2]
[376858720,1754145046726,-479.10120999,0.00024873,2]
[376858722,1754145046737,-23.29711234,0.00024873,2]
[376858724,1754145046747,-413.38727614,0.00024873,2]
[376860057,1754145102305,169.121024,0.00013699,2]
[376860058,1754145102511,169.121024,0.00020187,2]
[376860062,1754145244579,639.70227132,0.00021789,2]
[376860069,1754145449899,203.194994,0.00022813,2]
[376860070,1754145547858,751.17039069,0.00021789,2]
[376860071,1754145620860,168.184162,0.00027397,120]
[376860072,1754145685461,1829.0,0.00027631,30]
[376860075,1754145848997,500.78026046,0.00021789,2]
[376860076,1754145941202,-502.30031673,0.00023463,2]
[376860077,1754145941222,-211.85124685,0.00023672,2]
[376860078,1754145941243,-140.86757581,0.000237,7]
[376860079,1754145991089,-205.22271727,0.00023672,2]
[376860080,1754146023701,160.219917,0.00013699,2]
[376860081,1754146024037,160.219917,0.00020548,2]
[376860082,1754146025087,-88.17975052,0.00023672,2]
[376860083,1754146025112,-10.13242419,0.000237,7]
[376860084,1754146025135,-328.18522443,0.00023771,2]
[376860088,1754146143376,2278.97397291,0.00022813,2]
[376860089,1754146143401,20000.0,0.00022813,2]
[376860090,1754146143426,2621.02602709,0.00022813,2]
[376860091,1754146150201,333.85350697,0.00021363,2]
[376860133,1754146232668,-1200.0,0.00023772,2]
[376860135,1754146232678,-300.0,0.00023772,2]
[376860137,1754146232687,-300.0,0.00023772,2]
[376860139,1754146232696,-1200.0,0.00023772,2]
[376860141,1754146232706,-505.72343388,0.00023773,2]
[376860143,1754146232715,-500.0,0.00023773,2]
[376860145,1754146232724,-500.0,0.00023773,2]
[376860147,1754146232734,-500.0,0.00023773,2]
[376860149,1754146232743,-188.591,0.00023788,5]
[376860151,1754146232752,-719.36887057,0.00023788,2]
[376860170,1754146232900,-31577.9955548,0.00023789,2]
[376860173,1754146232922,-552.3362467,0.00023789,2]
[376860176,1754146232934,-500.59501,0.00023789,2]
[376860355,1754146238034,-1250.0000102,0.00023789,2]
[376860358,1754146238046,-1676.44939575,0.00023789,2]
[376860360,1754146238058,-1686.60095286,0.00023789,2]
[376860362,1754146238074,-891.78101481,0.00023789,2]
[376860383,1754146238265,-37840.8634879,0.00023789,2]
[376860385,1754146238274,-150.0,0.00023888,2]
[376860387,1754146238283,-150.0,0.00024189,2]
[376860389,1754146238293,-200.0,0.00024247,15]
[376860391,1754146238303,-200.0,0.00024247,15]
[376860393,1754146238312,-200.0,0.00024247,15]
[376860395,1754146238321,-200.0,0.00024247,15]
[376860397,1754146238330,-200.0,0.00024247,15]
[376860399,1754146238339,-263.49599159,0.00024279,2]
[376860401,1754146238349,-719.36887055,0.00024324,2]
[376860402,1754146238358,-5411.79777201,0.0002437,2]
[376860404,1754146238367,-6281.16,0.00024798,2]
[376860406,1754146238376,-154.780689,0.00024827,2]
[376860408,1754146238385,-719.36887055,0.00024859,2]
[376860410,1754146238394,-295.48,0.000249,7]
[376860413,1754146238404,-9592.16442561,0.000249,2]
[376860415,1754146238414,-9592.16442561,0.00024954,2]
[376860417,1754146238423,-500.0,0.00024962,2]
[376860419,1754146238432,-500.0,0.00024962,2]
[376860421,1754146238441,-500.0,0.00024962,2]
[376860423,1754146238451,-502.23219734,0.00024962,2]
[376860425,1754146238460,-500.0,0.00024962,2]
[376860427,1754146238469,-502.23219734,0.00024962,2]
[376860428,1754146238478,-500.0,0.00024962,2]
[376860430,1754146238487,-500.0,0.00024962,2]
[376860432,1754146238496,-500.0,0.00024962,2]
[376860434,1754146238505,-502.23219734,0.00024962,2]
[376860436,1754146238514,-500.0,0.00024962,2]
[376860438,1754146238524,-500.0,0.00024962,2]
[376860440,1754146238532,-500.0,0.00024962,2]
[376860442,1754146238542,-500.0,0.00024962,2]
[376860444,1754146238552,-502.23219734,0.00024962,2]
[376860446,1754146238561,-500.0,0.00024962,2]
[376860448,1754146238571,-502.23219734,0.00024962,2]
[376860450,1754146238580,-525.40545048,0.00024962,2]
[376860452,1754146238590,-620.0,0.00024962,2]
[376860454,1754146238599,-481.12440635,0.00024962,2]
[376860456,1754146238608,-502.23219734,0.00024962,2]
[376860458,1754146238618,-500.0,0.00024962,2]
[376860460,1754146238626,-502.23219734,0.00024962,2]
[376860462,1754146238635,-502.23219734,0.00024962,2]
[376860464,1754146238644,-502.23219734,0.00024962,2]
[376860465,1754146238653,-502.23219734,0.00024962,2]
[376860467,1754146238662,-502.23219734,0.00024962,2]
[376860469,1754146238672,-502.23219734,0.00024962,2]
[376860471,1754146238680,-502.23219734,0.00024962,2]
[376860473,1754146238689,-502.23219734,0.00024962,2]
[376860475,1754146238698,-502.23219734,0.00024962,2]
[376860477,1754146238707,-502.23219734,0.00024962,2]
[376860479,1754146238718,-500.0,0.00024962,2]
[376860481,1754146238727,-502.23219734,0.00024962,2]
[376860483,1754146238736,-500.0,0.00024962,2]
[376860485,1754146238746,-502.23219734,0.00024962,2]
[376860487,1754146238755,-351.79869536,0.00024962,2]
[376860489,1754146238765,-502.23219734,0.00024962,2]
[376860491,1754146238774,-502.23219734,0.00024962,2]
[376860493,1754146238783,-502.23219734,0.00024962,2]
[376860495,1754146238792,-502.23219734,0.00024962,2]
[376860497,1754146238804,-502.23219734,0.00024962,2]
[376860499,1754146238814,-502.23219734,0.00024962,2]
[376860501,1754146238823,-502.23219734,0.00024962,2]
[376860503,1754146238833,-502.23219734,0.00024962,2]
[376860505,1754146238842,-502.23219734,0.00024962,2]
[376860507,1754146238851,-502.23219734,0.00024962,2]
[376860510,1754146238868,-502.23219734,0.00024962,2]
[376860512,1754146238880,-502.23219734,0.00024962,2]
[376860514,1754146238890,-502.23219734,0.00024962,2]
[376860516,1754146238899,-502.23219734,0.00024962,2]
[376860518,1754146238909,-502.23219734,0.00024962,2]
[376860520,1754146238919,-502.23219734,0.00024962,2]
[376860522,1754146238928,-502.23219734,0.00024962,2]
[376860524,1754146238938,-502.23219734,0.00024962,2]
[376860526,1754146238948,-502.23219734,0.00024962,2]
[376860528,1754146238957,-502.23219734,0.00024962,2]
[376860530,1754146238967,-502.23219734,0.00024962,2]
[376860532,1754146238977,-502.23219734,0.00024962,2]